Cogmind - Beta 13 @@@ ROGUE MODE // 2024.04.09 @ 00:49:58 Player: scumgirle Result: Destroyed by G-47 Trooper with Particle Gun Performance ------------- Evolutions (0) 0 Regions Visited (2) 400 Robots Destroyed (16) 80 Value Destroyed (327) 327 Prototype IDs (0) 0 Alien Tech Used (0) 0 Bonus (0) 0 TOTAL SCORE: 807 Bonus ------- None Cogmind --------- Core Integrity 0/250 Matter 231/500 Energy 100/100 System Corruption 0% Temperature Cool (9) Movement Core (100) Ox1 Location -10/Mines Parts ------- > --- POWER (1) -------- (None) > --- PROPULSION (2) --- (None) > --- UTILITY (2) ------ High-capacity Matter Pod > --- WEAPON (2) ------- (None) > --- INVENTORY (5) ---- Aluminum Leg Wheel Wheel Peak State ------------ > --- POWER ------------ Light Nuclear Core > --- PROPULSION ------- Wheel Wheel > --- UTILITY ---------- Heat Sink High-capacity Matter Pod > --- WEAPON ----------- Light Assault Rifle Light Cannon > --- INVENTORY -------- Hover Unit EM Pulse Gun Grenade Launcher [Rating: 9] Favorites ----------- Power Light Nuclear Core Engine Ion Engine Power Core Light Nuclear Core Propulsion Wheel Wheel Wheel Hover Unit Hover Unit Utility High-capacity Matter Pod Device Heat Sink Storage High-capacity Matter Pod Weapon Light Assault Rifle Energy Gun EM Pulse Gun Ballistic Gun Light Assault Rifle Ballistic Cannon Light Cannon Launcher Grenade Launcher Build | -11 -10 -10 ------- Run | Yrd Mat Min Slots Evolved . | . . . Power . | . . . Propulsion . | . . . Utility . | . . . Weapon . | . . . Parts Attached 21 | 5 14 2 Power 3 | 1 2 . Engine 2 | 1 1 . Core 1 | . 1 . Reactor . | . . . Propulsion 5 | 2 3 . Treads . | . . . Leg . | . . . Wheel 4 | 2 2 . Hover 1 | . 1 . Flight . | . . . Utility 4 | . 4 . Device 2 | . 2 . Storage 2 | . 2 . Processor . | . . . Hackware . | . . . Protection . | . . . Artifact . | . . . Weapon 9 | 2 5 2 Energy Gun 4 | 2 1 1 Energy Cannon . | . . . Ballistic Gun 1 | . 1 . Ballistic Cannon 1 | . 1 . Launcher 3 | . 2 1 Special Weapon . | . . . Impact Weapon . | . . . Slashing Weapon . | . . . Piercing Weapon . | . . . Special Melee Weapon . | . . . Unidentified Prototypes . | . . . Parts Lost 6 | . . 6 Power 1 | . . 1 Propulsion . | . . . Utility 1 | . . 1 Weapon 4 | . . 4 Highest Loss Streak 6 | . . 6 To Critical Strikes . | . . . Average Slot Usage (%) 82 | . 80 86 Engine 6 | . 9 . Core 7 | . 3 13 Wheel 16 | . 14 19 Hover 3 | . 5 . Device 9 | . 7 13 Storage 11 | . 9 14 Energy Gun 3 | . 5 . Ballistic Gun 12 | . 12 12 Ballistic Cannon 10 | . 9 12 Naked Turns . | . . . Heaviest Build 14 | 6 14 14 Greatest Support 20 | 20 20 20 Greatest Overweight (x) 4 | . 4 4 Average Overweight (x) . | . . . Largest Inventory Capacity 5 | 5 5 5 Average Capacity 5 | 5 5 5 Most Carried 5 | 2 5 5 Average Carried 2 | . 3 2 Final Capacity 5 | 5 5 5 Final Carried 3 | 2 2 3 Class Distribution -------------------- 66% | Mutant 33% | Scavenger-Mutant Dominant Class ---------------- Mutant | -10/Materials Scavenger-Mutant | -10/Mines Resources | -11 -10 -10 ----------- Run | Yrd Mat Min Matter Collected 488 | 250 121 117 Remotely . | . . . Salvage Created 390 | 49 139 202 Parts 34 | 1 16 17 Haulers Intercepted . | . . . Recyclers Shooed . | . . . Parts Field Recycled . | . . . Retrieved Matter . | . . . Parts Self-Destructed . | . . . Prevented . | . . . Kills | -11 -10 -10 ------- Run | Yrd Mat Min Combat Hostiles Destroyed 12 | 1 5 6 Guns 3 | 1 1 1 Cannons 6 | . 1 5 AOE 3 | . 3 . Classes Destroyed 5 | 1 3 1 Worker 1 | . 1 . Builder 2 | . 2 . Recycler 1 | . . 1 Swarmer 6 | . 3 3 Grunt 6 | 1 2 3 Best Kill Streak 5 | 1 4 5 Combat Bots Only 5 | 1 3 5 Max Kills in Single Turn 2 | 1 2 1 Gunslinging . | . . . Exploded 2 | . 2 . Melee . | . . . Uniques/NPCs Destroyed . | . . . Combat | -11 -10 -10 -------- Run | Yrd Mat Min Hostile Shots Fired 82 | 2 23 57 Missed 27 | 1 6 20 Damage Taken 782 | 10 216 556 Core 252 | . 43 209 Absorbed by Shields . | . . . Core Remaining (%) 100 | 100 . . Volleys Fired 40 | 2 15 23 Largest 2 | 2 2 2 Hottest 80 | 80 70 55 Shots Fired 69 | 4 30 35 Gun 40 | 4 16 20 Cannon 24 | . 12 12 Launcher 5 | . 2 3 Special . | . . . Kinetic 55 | . 25 30 Thermal 2 | 2 . . Explosive 5 | . 2 3 Electromagnetic 7 | 2 3 2 Robot Hit Streak 5 | 1 4 5 Robot Miss Streak 4 | 2 4 2 Penetration Max . | . . . Secondary Targets . | . . . Shots Hit Robots 44 | 1 18 25 Core Hits 25 | 1 12 12 Critical Kills . | . . . Critical Parts Destroyed . | . . . Critical Strikes 2 | . . 2 Blast 2 | . . 2 Melee Attacks . | . . . Impact . | . . . Slashing . | . . . Piercing . | . . . Sneak Attacks . | . . . Combat Hostiles . | . . . Follow-up Attacks . | . . . Damage Inflicted 901 | 15 466 420 Guns 215 | 15 96 104 Cannons 310 | . 126 184 Explosions 376 | . 244 132 Melee . | . . . Ramming . | . . . Kinetic 462 | . 186 276 Thermal . | . . . Explosive 376 | . 244 132 Electromagnetic 63 | 15 36 12 Impact . | . . . Slashing . | . . . Piercing . | . . . Highest Corruption . | . . . Average Corruption . | . . . Corruption Purged . | . . . Corruption Blocked . | . . . Overload Shots . | . . . Overflow Damage 80 | . 34 46 Projectiles 7 | . . 7 Explosions 73 | . 34 39 Melee . | . . . Knockbacks 4 | . 2 2 Impact . | . . . Kinetic 3 | . 2 1 Secondary 1 | . . 1 Self-Inflicted Damage 130 | . 32 98 Shots 4 | . 1 3 Rammed . | . . . Targets Rammed . | . . . Kicked . | . . . Crushed . | . . . Highest Temperature 36 | 36 20 15 Average Temperature 9 | 20 7 7 Received Heat Transfer 303 | 6 81 216 Siege Activations . | . . . Robots Corrupted . | . . . Combat Hostiles . | . . . Parts Fried . | . . . Impact Corruptions . | . . . Robots Melted . | . . . Combat Hostiles . | . . . Parts Melted . | . . . Heat Transferred . | . . . Parts Sabotaged . | . . . Parts Stolen . | . . . Parts Stripped . | . . . Power Chain Reactions . | . . . Alert | -11 -10 -10 ------- Run | Yrd Mat Min Peak Influence 247 | 20 247 150 Initial 25 | . 13 25 Average 110 | 1 152 68 Maximum Alert Level 1 | . 1 . Low Security (%) 80 | 100 67 100 Level 1 19 | . 32 . Level 2 . | . . . Level 3 . | . . . Level 4 . | . . . Level 5 . | . . . High Security . | . . . Max Security . | . . . Squads Dispatched . | . . . Investigation . | . . . Extermination . | . . . Reinforcement . | . . . Assault . | . . . Garrison . | . . . Intercept . | . . . Searches Triggered . | . . . Construction Impeded . | . . . Haulers Reinforced . | . . . Active Scanning Responses . | . . . Cargo Convoy Interrupts . | . . . Stealth | -11 -10 -10 --------- Run | Yrd Mat Min Distress Signals 1 | . 1 . Communications Jammed . | . . . Distress Signals . | . . . Times Spotted 20 | 1 12 7 Peak Tracking Total 5 | 1 3 5 Tactical Retreats 1 | . 1 . Traps | -11 -10 -10 ------- Run | Yrd Mat Min Traps Triggered . | . . . Indirectly . | . . . Trap Hack Attempts . | . . . Triggered . | . . . Disarmed . | . . . Reprogrammed . | . . . Reused . | . . . Traps Extracted . | . . . Installed . | . . . Triggered . | . . . Machines | -11 -10 -10 ---------- Run | Yrd Mat Min Machines Disabled 2 | . 2 . Max in Single Turn 2 | . 2 . Machines Repaired . | . . . Machines Dismantled . | . . . Machines Sabotaged . | . . . Overloaded Fab Kills . | . . . Hacking | -11 -10 -10 --------- Run | Yrd Mat Min Machines Accessed . | . . . Terminals . | . . . Fabricators . | . . . Repair Stations . | . . . Recycling Units . | . . . Scanalyzers . | . . . Garrison Access . | . . . Total Hacks . | . . . Successful . | . . . Failed . | . . . Catastrophic . | . . . Database Lockouts . | . . . Manual . | . . . Terminals . | . . . Fabricators . | . . . Repair Stations . | . . . Recycling Units . | . . . Scanalyzers . | . . . Garrison Access . | . . . Terminal Hacks . | . . . Fabricator Hacks . | . . . Repair Station Hacks . | . . . Recycling Unit Hacks . | . . . Scanalyzer . | . . . Garrison Access Hacks . | . . . Unauthorized Hacks . | . . . Terminals . | . . . Fabricators . | . . . Repair Stations . | . . . Recycling Units . | . . . Scanalyzers . | . . . Garrison Access . | . . . Data Cores Recovered . | . . . Used . | . . . Hacking Detections . | . . . Full Trace Events . | . . . Feedback Events . | . . . Feedback Blocked . | . . . Robot Schematics Acquired . | . . . Robots Built . | . . . Authchips . | . . . Time . | . . . Total Robot Build Rating . | . . . Part Schematics Acquired . | . . . Parts Built . | . . . Authchips . | . . . Time . | . . . Total Part Build Rating . | . . . Parts Repaired . | . . . Time . | . . . Parts Recycled . | . . . Recycled Matter . | . . . Retrieved Matter . | . . . Retrieved Components . | . . . Parts Scanalyzed . | . . . Part Schematics Acquired . | . . . Parts Damaged . | . . . Bothacking | -11 -10 -10 ------------ Run | Yrd Mat Min Used RIF Installer . | . . . Robots Hacked . | . . . Non-combat . | . . . Combat . | . . . Robot Hacks Applied . | . . . Relay Couplers Released . | . . . Fabnet Peak Effective % . | . . . Robots Rewired . | . . . Allies Hacked . | . . . Hacks Repelled . | . . . Allies | -11 -10 -10 -------- Run | Yrd Mat Min Total Allies . | . . . Largest Group . | . . . Highest-Rated Group . | . . . Highest-Rated Ally . | . . . Total Orders . | . . . Ally Attacks . | . . . Total Damage . | . . . Kills . | . . . Allies Corrupted . | . . . Allies Melted . | . . . Intel | -11 -10 -10 ------- Run | Yrd Mat Min Robot Analysis Total . | . . . Derelict Logs Recovered 1 | . . 1 Drone Launches . | . . . Drone Recoveries . | . . . Exploration | -11 -10 -10 ------------- Run | Yrd Mat Min Turns Passed 756 | 84 439 233 Spaces Moved 593 | 91 321 181 Core 59 | 38 8 13 Treads . | . . . Legs . | . . . Wheels 451 | 53 230 168 Hover 83 | . 83 . Flight . | . . . Fastest Speed 50 | 50 80 80 Average Speed 96 | 67 106 92 Slowest Speed 250 | 80 250 250 Overloaded Moves . | . . . Propulsion Burnouts . | . . . Robots Hopped . | . . . Cave-ins Triggered . | . . . Exploration Rate (%) 29 | 5 33 49 Regions Visited 2 Branch Regions 1 Pre-discovered Areas . | . . . Known Exits Taken . | . . . Unknown Exits Taken 2 | 1 1 . Scrap Searched 1 | . . 1 Spaces Dug . | . . . Terrain Destroyed 51 | . 35 16 Melee . | . . . Projectile . | . . . AOE 51 | . 35 16 Terrain Rammed . | . . . Walls Destroyed . | . . . Machines Disabled . | . . . Actions | -11 -10 -10 --------- Run | Yrd Mat Min Total 731 | 110 404 217 Wait 22 | . 14 8 Move 591 | 90 320 181 Hop . | . . . Pick Up 27 | 10 16 1 Fast Attach . | . . . Attach 21 | 5 14 2 Detach 13 | . 11 2 Swap . | . . . Drop 17 | 3 14 . Fire 40 | 2 15 23 Melee . | . . . Ram . | . . . Kick . | . . . Crush . | . . . Escape Stasis . | . . . Rewire . | . . . Trap . | . . . Miscellaneous . | . . . Route ------- -11/Scrapyard -10/Materials (discovered 2 exits: [*Min x2]) -10/Mines History --------- Turn | Location | Event 2 | -11/Scrapyard | Met Revision 17 70 | -11/Scrapyard | Discovered new exit (range 8) 85 | -11/Scrapyard | Entered Materials 90 | -10/Materials | Discovered new exit (range 15) 300 | -10/Materials | Build established: Mutant 504 | -10/Materials | Discovered new exit (range 8) 524 | -10/Materials | Entered Mines 528 | -10/Mines | Learned Materials terminal intel 742 | -10/Mines | Core integrity fell below 50% 750 | -10/Mines | Core integrity fell below 20% 757 | -10/Mines | Destroyed by G-47 Trooper with Particle Gun Last Messages --------------- R-06 Scavenger collects Aluminum Leg. K-01 Serf collects debris. R-06 Scavenger collects Lgt. Assault Rifle. R-06 Scavenger collects Lgt. Ion Engine. K-01 Serf collects debris. Lgt. Cannon destroyed. Lgt. Assault Rifle destroyed. G-34 Mercenary destroyed. K-01 Serf collects debris. EM Pulse Gun destroyed. K-01 Serf collects debris. R-06 Scavenger destroyed. K-01 Serf suffers critical hit (Burn). K-01 Serf destroyed. Lgt. Nuclear Core destroyed. [Achievement: Let's See Who's Tougher] Heat Sink destroyed. Destroyed Heat Sink. Grenade Launcher destroyed. Destroyed Grenade Launcher. Map ----- +----------------------------------------------------+ | ##???????????####?????????????????????????????? | | #?????????????????????????????????????????????? | | ##????????????????????????????????????????????? | | #????????????????????????????????????????????? | | #????????????????????????????????????????????? | | # #????????????????????????????????????????????? | | ## #????????????????????????????????????????????? | | ## #????????????????????????????????????????????? | | ##??????????#####????????????????????????????? | | ###???????## ##?###???????????????????????? | | # ##????### ## ##??????????????????????? | | # ##??## #??????????????????????? | | # #### #?????###??????????????? | | ## ## ## """ #???## ##?????????????? | | ?####### ##### """ #???# ##????????????? | | ???????## ##??## """ #??## #????????????? | | ????????## ###??## #?## #????????????? | | ?????????####???## ### ##???????????? | | ????????????????# ### #???????????? | | ???????????????## ### #???????????? | | ###?????????#### ###### #????????????? | | # ###???#### ## #????????????? | | # ##### ## #????????????? | | # =%* ## ##????????????? | | ### % *[g !##?###???? ???????? | | ??## ### !### ### @ ##??????? ?????????? | | ???# ##?### #?# #?# ##????? #??????????? | | ???####????# #?# #?# %#### #???????????? | | ???????????# #?# ######%= * #????????????? | | ???????????# #?# [= = #????????????? | | ???????????# #?## ##### ##????????????? | | ???????????# #??# #???# ##?????????????? | | ???????????# #??? #??# ##??????????????? | | ???????????# #??? #?# #???????????????? | | ???????????# #??? #??????????????? | | ???????????# #???#### #?????????????? | | ??????????? #??????## #?????????????? | | ???????????# #???????# ##?????????????? | | ???????????? #???????# ##??????????????? | | ???????????? ????????## ##???????????????? | | ???????????? ?????????##### #????????????????? | | ???????????? ??????????????# ##????????????????? | | ?????????????????????????????###?????????????????? | | ?????????????????????????????????????????????????? | | ?????????????????????????????????????????????????? | | ?????????????????????????????????????????????????? | | ?????????????????????????????????????????????????? | | ?????????????????????????????????????????????????? | | ?????????????????????????????????????????????????? | | ?????????????????????????????????????????????????? | +----------------------------------------------------+ Best States ------------- Heat Dissipation 35 Energy Generation 14 Energy Capacity 250 Matter Stores 300 Matter Capacity 500 Sight Range 16 Terrain Scan Density 10 Evasion (%) 50 Item Schematics ----------------- None Robot Schematics ------------------ None Fabricated ------------ Nothing Alien Tech Used ----------------- None Achievements -------------- Let's See Who's Tougher Challenges ------------ None Game ------ Seed ProjectionNodeWand Manual? 0 Play Time 00:17:57 Cumulative 0.6 hours Start 2024.04.09 @ 00:27:20 End 2024.04.09 @ 00:49:58 Sessions 1 Manual Loads 0 Difficulty Rogue Special Mode None Game No. 2 Rogue 2 Adventurer 0 Explorer 0 Win Type - Total 0 Types 0/0/0/0/0/0/0/0/0 Lore% 0 Gallery% 2 Achievement% 0 Wizard Run 0 Options --------- Layout 1 ASCII 0 Keyboard 1 Movement Numpad Keybinds 0 Fullscreen 1 Font 18/SmallcapsGlow Map View 50x40 Zoom Use 0% Tactical HUD 0 Map Filters NONE Filters NONE Steam 0 RUN: 2997404f-746b-485a-9c6c-fd171550fddc